bitfinex-derivatives/quotes_SOLF0:USTF0_20241015
["timestamp","ask_amount","ask_price","bid_price","bid_amount"]
[1729014285856,3.2174,155.41,155.38,3.2178]
[1729014287855,3.2177,155.4,155.37,3.2181]
[1729014288355,21.48,155.44,155.37,3.2181]
[1729014289158,3.2178,155.4,155.38,3.218]
[1729014291963,3.218,155.39,155.36,4.6277]
[1729014292451,3.2182,155.37,155.35,3.2185]
[1729014292759,21.48,155.4,155.32,1.4159]
[1729014292961,9.19271327,155.39,155.32,1.4159]
[1729014293156,6.02,155.39,155.32,1.4159]
[1729014293670,3.2184,155.37,155.32,1.4159]
[1729014294261,1.4302,155.42,155.34,15.46]
[1729014294465,7.4502,155.42,155.34,15.46]
[1729014294858,3.2181,155.38,155.36,3.2184]
[1729014295163,22.9102,155.42,155.33,7.4283]
[1729014295761,26.13352442,155.42,155.35,3.2185]
[1729014296463,3.2181,155.38,155.35,3.2185]
[1729014296858,3.2181,155.38,155.36,3.2184]
[1729014297258,3.2177,155.4,155.35,15.46]
[1729014297458,1.4302,155.42,155.35,15.46]
[1729014297856,3.2177,155.4,155.35,15.46]
[1729014298057,3.2177,155.4,155.37,3.2181]
[1729014298768,3.2176,155.4,155.35,15.46]
[1729014299268,3.2176,155.4,155.37,3.2181]
[1729014299664,3.2176,155.4,155.35,15.46]
[1729014299865,3.2176,155.4,155.37,3.2181]
[1729014300269,1.4302,155.42,155.35,15.46]
[1729014300563,20.15753629,155.42,155.32,1.4159]
[1729014300763,15.46,155.4,155.32,1.4159]
[1729014300961,3.2186,155.36,155.33,3.2189]
[1729014301161,3.2186,155.36,155.32,1.4159]
[1729014301162,6.02,155.39,155.32,1.4159]
[1729014301664,15.46,155.38,155.32,1.4159]
[1729014301867,15.46,155.35,155.27,7.3485]
[1729014302064,15.46,155.33,155.26,1.3289]
[1729014302472,3.2199,155.3,155.27,3.2203]
[1729014302661,4.58582613,155.34,155.26,16.7889]
[1729014302662,1.3525,155.34,155.26,16.7889]
[1729014303161,21.48,155.35,155.26,16.7889]
[1729014303669,6.02,155.35,155.26,16.7889]
[1729014304165,6.02,155.37,155.29,15.46]
[1729014304671,3.2187,155.35,155.32,3.2192]
[1729014304865,6.02,155.37,155.29,16.8349]
[1729014305164,6.02,155.37,155.28,6.02]
[1729014305165,15.46,155.36,155.28,6.02]
[1729014305761,15.46,155.34,155.26,1.3289]
[1729014305963,3.2194,155.32,155.26,1.3289]
[1729014306269,6.02,155.37,155.29,15.46]
[1729014306464,3.2187,155.35,155.29,15.46]
[1729014306669,6.02,155.37,155.29,15.46]
[1729014306968,1.38,155.39,155.31,15.46]
[1729014307164,15.46,155.4,155.33,15.46]
[1729014307165,6.02,155.4,155.33,15.46]
[1729014307573,3.218,155.39,155.35,3.2186]
[1729014307863,6.02,155.4,155.35,3.2186]
[1729014308270,3.2181,155.38,155.35,3.2186]
[1729014308675,15.46,155.44,155.37,3.2181]
[1729014308868,3.2178,155.4,155.37,3.2181]
[1729014309169,6.02,155.42,155.38,3.2179]
[1729014309370,6.02,155.42,155.35,15.46]
[1729014309763,6.02,155.42,155.33,21.48]
[1729014309764,9.18545372,155.42,155.33,21.48]
[1729014309959,3.218,155.38,155.33,21.48]
[1729014310364,3.2183,155.37,155.33,6.02]
[1729014310561,15.46,155.38,155.32,1.3473]
[1729014310970,3.2184,155.37,155.32,1.3473]
[1729014311270,21.48,155.38,155.32,1.3473]
[1729014311480,3.219,155.34,155.29,21.48]
[1729014311770,15.46,155.36,155.29,6.02]
[1729014312161,3.2189,155.34,155.3,3.2195]
[1729014313574,3.2191,155.33,155.3,3.2195]
[1729014313873,15.46,155.34,155.27,1.3267]
[1729014314268,3.2196,155.31,155.28,3.2201]
[1729014319068,3.2196,155.31,155.29,3.2198]
[1729014319270,3.219,155.34,155.27,16.7867]
[1729014319491,1.2979,155.37,155.27,16.7867]
[1729014319492,7.3179,155.37,155.29,15.46]
[1729014319776,3.2189,155.34,155.29,15.46]
[1729014320370,15.46,155.38,155.29,21.48]
[1729014320569,7.4491,155.39,155.31,15.46]
[1729014320777,3.2181,155.38,155.35,3.2185]
[1729014321574,3.2182,155.37,155.35,3.2185]
[1729014321965,21.48,155.41,155.34,3.2188]
[1729014322177,3.2179,155.39,155.33,3.2770836]
[1729014322377,15.46,155.39,155.3,6.02]
[1729014322570,15.46,155.37,155.32,3.2192]
[1729014322776,3.2188,155.35,155.32,3.2192]
[1729014322973,15.46,155.37,155.3,6.02]
[1729014323174,3.2191,155.33,155.31,3.2193]
[1729014323875,3.2189,155.34,155.31,3.2193]
[1729014325073,3.2185,155.36,155.32,3.2191]
[1729014325274,3.2185,155.36,155.3,6.02]
[1729014325475,15.46,155.39,155.3,6.02]
[1729014325981,3.2188,155.35,155.32,3.2191]
[1729014326179,15.46,155.39,155.3,6.02]
[1729014326575,3.2182,155.38,155.35,3.2186]
[1729014326784,15.46,155.39,155.3,6.02]
[1729014326988,15.46,155.39,155.31,3.16890466]
[1729014327985,3.2184,155.37,155.34,3.2187]
[1729014328283,3.2184,155.37,155.31,3.16890466]
[1729014328787,3.2184,155.37,155.34,3.2187]
[1729014329271,21.48,155.41,155.31,3.16890466]
[1729014329676,3.2183,155.37,155.34,3.2189]
[1729014329886,15.46,155.39,155.31,3.16890466]
[1729014330186,15.46,155.39,155.33,3.219]
[1729014330482,15.46,155.39,155.31,18.62890466]
[1729014330879,21.48,155.41,155.31,18.62890466]
[1729014331085,15.46,155.41,155.31,18.62890466]
[1729014331283,6.02,155.42,155.33,15.46]
[1729014331487,127.8552411,155.47,155.37,15.46]
[1729014331684,127.8552411,155.47,155.38,6.02]
[1729014331881,3.2169,155.44,155.41,3.2173]
[1729014332078,127.8552411,155.47,155.38,6.02]
[1729014332277,15.46,155.43,155.35,6.0]
[1729014332482,3.2175,155.41,155.38,3.2179]
[1729014332684,3.2175,155.41,155.35,6.0]
[1729014332884,127.8552411,155.47,155.37,15.46]
[1729014333086,3.2169,155.44,155.37,15.46]
[1729014333388,127.8552411,155.47,155.37,15.46]
[1729014333583,15.46,155.45,155.35,21.46]
[1729014333977,15.46,155.45,155.35,6.0]
[1729014334178,121.8352411,155.47,155.37,15.46]
[1729014335688,121.8352411,155.47,155.4,3.2175]
[1729014335689,3.2171,155.43,155.4,3.2175]
[1729014336691,3.2174,155.41,155.39,3.2177]
[1729014336898,15.46,155.43,155.34,1.3281]
[1729014337189,3.2178,155.39,155.34,10.5469]
[1729014337377,15.46,155.41,155.34,10.5469]
[1729014337582,15.46,155.39,155.34,10.5469]
[1729014337777,3.2182,155.38,155.35,3.2186]
[1729014338790,3.2183,155.37,155.34,10.5469]
[1729014338986,3.2183,155.37,155.34,3.2188]
[1729014339387,15.46,155.39,155.34,3.2188]
[1729014339691,15.46,155.39,155.31,9.29448129]
[1729014339894,3.2181,155.38,155.35,3.2186]
[1729014340388,3.2184,155.37,155.34,3.2188]
[1729014340579,15.46,155.39,155.31,9.29448129]
[1729014340985,3.2182,155.38,155.35,3.2186]
[1729014341287,21.46,155.41,155.35,3.2186]
[1729014341489,3.2176,155.4,155.34,3.2187]
[1729014341690,3.2176,155.4,155.32,15.46]
[1729014342195,3.2176,155.4,155.37,3.2181]
[1729014342381,2.6677,155.46,155.32,15.46]
[1729014342691,21.46,155.45,155.34,15.46]
[1729014342879,21.46,155.45,155.38,3.2179]
[1729014343287,21.46,155.45,155.35,7.3635]
[1729014343487,15.46,155.42,155.35,7.3635]
[1729014343790,3.218,155.39,155.35,7.3635]
[1729014343995,3.218,155.39,155.36,3.2184]
[1729014344798,3.2179,155.39,155.36,3.2184]
[1729014344995,15.46,155.42,155.35,1.3635]
[1729014345194,15.46,155.43,155.38,3.2179]
[1729014345589,3.2175,155.41,155.38,3.2179]
[1729014348199,15.46,155.43,155.35,1.3635]
[1729014348390,15.46,155.42,155.35,1.3635]
[1729014348999,15.46,155.42,155.36,3.2182]
[1729014349000,3.2178,155.4,155.36,3.2182]
[1729014349203,3.2178,155.4,155.35,1.3635]
[1729014349695,3.2178,155.4,155.37,3.2182]
[1729014349894,3.2179,155.39,155.37,3.2182]
[1729014358300,2.6677,155.46,155.35,1.3635]
[1729014358603,1.3731,155.46,155.38,15.46]
[1729014358803,1.3731,155.46,155.39,9.13956482]
[1729014359303,3.217,155.44,155.41,3.2174]
[1729014359901,15.46,155.45,155.39,6.0]
[1729014360095,3.2173,155.42,155.39,3.2177]
[1729014360502,15.46,155.43,155.35,4.0966]
[1729014360700,3.2176,155.4,155.37,3.2182]
[1729014360902,3.2176,155.4,155.35,8.7909]
[1729014361111,3.2177,155.4,155.37,3.2182]
[1729014361406,3.2177,155.4,155.35,8.7909]
[1729014361704,6.0,155.44,155.36,15.46]
[1729014361705,3.2171,155.43,155.36,15.46]
[1729014361906,1.3731,155.46,155.38,15.46]
[1729014362102,106.3752411,155.47,155.4,15.46]
[1729014362306,109.5915411,155.47,155.44,3.2166]
[1729014362707,106.3752411,155.47,155.41,1.4015]
[1729014362904,3.2166,155.45,155.43,3.217]
[1729014363206,16.811,155.53,155.43,21.46]
[1729014363408,3.2157,155.5,155.43,21.46]
[1729014363909,3.2159,155.49,155.43,21.46]
[1729014364111,3.2159,155.49,155.43,6.0]
[1729014364906,3.2159,155.49,155.46,3.2163]
[1729014365105,22.811,155.53,155.43,21.46]
[1729014365408,3.2156,155.5,155.47,3.216]
[1729014365609,16.811,155.53,155.47,3.216]
[1729014366306,3.2153,155.52,155.47,3.216]
[1729014366514,16.811,155.53,155.47,3.216]
[1729014367109,3.2157,155.5,155.47,3.216]
[1729014367506,15.46,155.49,155.41,1.4015]
[1729014367710,15.46,155.49,155.41,7.4015]
[1729014368407,3.2166,155.46,155.43,3.2169]
[1729014369009,3.2169,155.44,155.41,10.6188]
[1729014369313,3.2169,155.44,155.41,3.2173]
[1729014370016,3.2171,155.43,155.41,3.2173]
[1729014370504,3.2171,155.43,155.4,3.2175]
[1729014371906,3.2168,155.44,155.39,6.0]
[1729014372108,1.3729,155.46,155.39,6.0]
[1729014372306,15.46,155.49,155.4,15.46]
[1729014372502,15.46,155.47,155.39,6.0]
[1729014372915,15.46,155.43,155.37,1.3188]
[1729014373110,15.46,155.39,155.3,15.46]
[1729014373415,15.46,155.39,155.32,6.0]
[1729014373609,15.46,155.39,155.3,1.3897]
[1729014373610,15.46,155.37,155.3,1.3897]
[1729014374206,18.6784,155.37,155.33,3.2189]
[1729014374705,6.0,155.43,155.34,15.46]
[1729014374911,21.46,155.43,155.34,15.46]
[1729014375211,3.2174,155.42,155.38,3.2179]
[1729014375709,7.4303,155.44,155.36,1.4041]
[1729014376516,7.4303,155.44,155.39,3.2177]
[1729014377316,3.2174,155.42,155.38,3.2179]
[1729014377815,3.2174,155.42,155.36,1.4041]
[1729014378017,3.2174,155.42,155.39,3.2178]
[1729014379912,3.2171,155.43,155.4,3.2176]
[1729014381014,1.4303,155.44,155.37,6.0]
[1729014381213,3.2168,155.44,155.37,6.0]
[1729014381416,1.4264,155.46,155.37,6.0]
[1729014381720,4.60394602,155.46,155.36,2.804]
[1729014381918,26.1564,155.46,155.36,1.4041]
[1729014382113,27.4615,155.46,155.33,24.73]
[1729014382317,27.4615,155.46,155.32,1.3649]
[1729014382318,24.73,155.43,155.32,7.3649]
[1729014382513,6.0,155.42,155.32,7.3649]
[1729014382709,3.2182,155.38,155.34,3.2187]
[1729014382914,26.0496,155.41,155.32,6.0]
[1729014383117,29.26963347,155.41,155.3,1.4084]
[1729014383417,29.26963347,155.41,155.31,6.0]
[1729014383418,1.4193,155.4,155.31,6.0]
[1729014383713,1.4193,155.4,155.31,9.14374919]
[1729014384017,1.4193,155.4,155.34,3.2187]
[1729014385311,1.4193,155.4,155.25,27.4531]
[1729014385312,24.73,155.38,155.25,27.4531]
[1729014385512,30.73,155.38,155.26,4.30322504]
[1729014385816,6.0,155.38,155.27,8.96882504]
[1729014386017,3.2188,155.35,155.3,3.2196]
[1729014386217,6.0,155.38,155.3,3.2196]
[1729014386418,3.2188,155.35,155.31,3.2193]
[1729014386918,6.0,155.38,155.27,8.97140682]
[1729014387109,3.2192,155.33,155.29,3.2197]
[1729014387311,24.73,155.34,155.26,1.3344]
[1729014387512,1.3992,155.33,155.26,1.3344]
[1729014387718,3.2198,155.3,155.26,4.5548]
[1729014387928,1.3992,155.33,155.26,1.3344]
[1729014388416,3.2194,155.32,155.28,3.2201]
[1729014388621,1.3992,155.33,155.26,1.3344]
[1729014389121,3.2195,155.31,155.28,3.2201]
[1729014389518,1.3992,155.33,155.26,1.3344]
[1729014389717,1.3992,155.33,155.26,2.7465]
[1729014391015,3.2193,155.32,155.29,3.2197]
[1729014391210,3.2193,155.32,155.26,2.7465]
[1729014391421,3.2193,155.32,155.27,6.0]
[1729014392328,3.2193,155.32,155.3,3.2197]
[1729014392718,3.2191,155.34,155.27,6.0]
[1729014392919,1.3638,155.38,155.27,30.73]
[1729014393223,1.3638,155.38,155.28,1.3362]
[1729014394023,3.2187,155.35,155.32,3.2192]
[1729014395718,3.2187,155.35,155.33,3.219]
[1729014396831,1.3638,155.38,155.28,1.3362]
[1729014397032,3.2191,155.33,155.28,4.30443236]
[1729014397333,3.2191,155.33,155.28,1.3362]
[1729014397528,3.2188,155.35,155.32,3.2192]
[1729014399034,3.2198,155.3,155.26,1.3344]
[1729014399728,3.2198,155.3,155.27,3.2201]
[1729014400623,15.46,155.3,155.19,85.28215788]
[1729014400829,12.4375,155.35,155.21,8.9722702]
[1729014400830,15.46,155.27,155.21,8.9722702]
[1729014401036,15.46,155.27,155.21,6.0]
[1729014401225,3.2205,155.26,155.23,3.221]
[1729014401931,3.2205,155.26,155.24,3.2209]
[1729014402539,3.2205,155.26,155.23,3.221]
[1729014405333,3.2208,155.25,155.22,3.2213]
[1729014405533,15.46,155.27,155.2,3.20600209]
[1729014405941,3.2209,155.25,155.22,3.2212]
[1729014406242,15.46,155.25,155.18,6.0]
[1729014406434,15.46,155.25,155.2,3.2217]
[1729014406435,3.2214,155.22,155.2,3.2217]
[1729014406629,3.2214,155.22,155.18,6.0]
[1729014406833,3.2214,155.22,155.16,7.29179948]
[1729014407139,3.2216,155.21,155.16,13.29179948]
[1729014407442,3.2211,155.23,155.21,3.2215]
[1729014407742,15.46,155.25,155.16,28.75179948]
[1729014408039,3.2209,155.25,155.22,3.2211]
[1729014408744,3.221,155.24,155.22,3.2211]
[1729014409138,3.2211,155.24,155.16,28.75179948]
[1729014409948,3.2211,155.24,155.2,3.2216]
[1729014410150,3.2211,155.24,155.16,28.75179948]
[1729014410643,3.2211,155.24,155.21,3.2215]
[1729014410849,3.2211,155.24,155.16,28.75179948]
[1729014410850,1.4282,155.3,155.2,21.46]
[1729014411048,7.4282,155.3,155.26,3.2204]
[1729014411251,3.22,155.29,155.26,3.2204]
[1729014411440,7.4282,155.3,155.22,15.46]
[1729014411947,3.2202,155.28,155.25,3.2206]
[1729014412251,1.4282,155.3,155.24,15.46]
[1729014412451,3.2189,155.34,155.31,3.2194]
[1729014412650,15.46,155.38,155.28,15.46]
[1729014412850,6.0,155.37,155.3,15.46]
[1729014413544,3.2185,155.36,155.33,3.219]
[1729014416655,3.2185,155.36,155.3,15.46]
[1729014416656,3.2182,155.38,155.32,3.2191]
[1729014416849,3.2182,155.38,155.32,15.46]
[1729014417043,7.3262,155.39,155.31,1.4103]
[1729014417245,3.2184,155.37,155.33,3.2189]
[1729014418157,7.3262,155.39,155.33,3.2189]
[1729014418748,3.2184,155.37,155.33,3.2189]
[1729014419055,7.3262,155.39,155.32,3.2192]
[1729014419655,15.46,155.38,155.28,21.46]
[1729014419858,3.2188,155.35,155.31,3.2195]
[1729014421055,3.2188,155.35,155.32,3.2193]
[1729014422055,15.46,155.38,155.28,21.44]
[1729014422256,10.5441,155.39,155.36,3.2184]
[1729014422464,16.8122,155.45,155.35,15.46]
[1729014422758,1.3196,155.44,155.35,15.46]
[1729014423261,1.3196,155.44,155.38,3.2179]
[1729014423556,16.7796,155.44,155.33,8.6988]
[1729014423756,3.2173,155.42,155.38,3.2178]
[1729014424057,1.3196,155.44,155.34,24.72]
[1729014424659,1.3196,155.44,155.33,7.3986]
[1729014424852,24.72,155.42,155.33,7.3986]
[1729014425256,5.98,155.41,155.33,1.4186]
[1729014425459,5.98,155.41,155.3,5.98]
[1729014425656,3.2182,155.37,155.33,3.2189]
[1729014425962,1.2959,155.4,155.33,3.2189]
[1729014426356,1.2959,155.4,155.3,7.3009]
[1729014426660,3.2187,155.35,155.32,3.2192]
[1729014427965,3.2187,155.35,155.33,3.2191]
[1729014428465,3.2189,155.34,155.32,3.2192]
[1729014429360,3.2186,155.36,155.33,3.2191]
[1729014429562,1.2959,155.4,155.3,7.3009]
[1729014429767,26.0396,155.44,155.32,24.72]
[1729014430062,27.4093,155.44,155.32,24.72]
[1729014430264,27.4093,155.44,155.3,32.0209]
[1729014430767,1.02997396,155.43,155.3,32.0209]
[1729014431154,24.72,155.42,155.33,3.2189]
[1729014431358,7.00997396,155.41,155.33,3.2189]
[1729014431559,1.02997396,155.4,155.33,3.2189]
[1729014431860,3.2185,155.36,155.33,3.2189]
[1729014432160,24.72,155.39,155.31,3.2193]
[1729014432461,24.72,155.39,155.3,7.3009]
[1729014432860,3.2182,155.38,155.33,3.219]
[1729014433062,33.96249356,155.37,155.25,24.72]
[1729014433256,5.98,155.36,155.25,5.98]
[1729014433459,24.72,155.34,155.25,5.98]
[1729014434055,24.72,155.34,155.26,3.2205]
[1729014434255,1.02944629,155.33,155.25,5.98]
[1729014434456,27.90231581,155.34,155.24,2.6637]
[1729014434663,27.90231581,155.34,155.24,7.308]
[1729014435263,27.90231581,155.34,155.21,1.4299]
[1729014435264,24.72,155.32,155.21,1.4299]
[1729014435465,5.98,155.31,155.22,5.98]
[1729014435867,1.4032,155.3,155.23,3.2211]
[1729014436570,3.2205,155.27,155.23,3.2211]
[1729014437170,3.2205,155.27,155.22,5.98]
[1729014437367,1.4032,155.3,155.22,5.98]
[1729014437568,3.2198,155.3,155.22,30.7]
[1729014437767,5.98,155.33,155.22,30.7]
[1729014437963,5.98,155.33,155.21,1.4299]
[1729014437964,24.72,155.32,155.2,72.615138]
[1729014438272,24.72,155.27,155.17,5.98]
[1729014438472,3.2215,155.22,155.17,5.98]
[1729014438672,8.7056,155.26,155.17,5.98]
[1729014440174,3.221,155.24,155.21,3.2215]
[1729014440573,5.98,155.26,155.19,24.72]
[1729014440875,3.2205,155.26,155.23,3.221]
[1729014441572,3.2205,155.26,155.19,24.72]
[1729014441776,24.72,155.27,155.18,1.3285]
[1729014441971,1.2959,155.26,155.17,5.98]
[1729014442169,5.91181745,155.26,155.17,5.98]
[1729014442370,3.2215,155.22,155.18,3.222]
[1729014442874,3.2215,155.22,155.17,5.98]
[1729014443869,2.6381,155.26,155.17,5.98]
[1729014444072,24.72,155.29,155.17,24.72]
[1729014444272,5.98,155.28,155.19,24.72]
[1729014444476,3.2207,155.26,155.19,24.72]
[1729014444870,5.98,155.29,155.19,24.72]
[1729014445077,5.98,155.29,155.22,3.2212]
[1729014445768,3.2205,155.27,155.23,3.221]
[1729014446084,5.98,155.29,155.23,3.221]
[1729014446377,5.98,155.29,155.19,24.72]
[1729014446782,3.2205,155.26,155.22,3.2212]
[1729014447369,3.2202,155.28,155.25,3.2207]
[1729014447576,8.7575,155.32,155.23,1.3556]
[1729014448281,3.2199,155.3,155.26,3.2204]
[1729014448582,24.72,155.37,155.25,5.98]
[1729014448775,7.00816769,155.36,155.25,5.98]
[1729014449078,3.2194,155.32,155.28,3.2201]
[1729014449579,3.20890234,155.35,155.28,3.2201]
[1729014449779,3.2191,155.33,155.25,7.2904]
[1729014449979,3.2191,155.33,155.25,8.7219]
[1729014450377,3.2194,155.32,155.29,3.2198]
[1729014451074,3.2187,155.35,155.32,3.2192]
[1729014451276,5.98,155.36,155.26,24.72]
[1729014451983,5.98,155.36,155.26,5.98]
[1729014452479,3.2199,155.29,155.27,3.2203]
[1729014452984,5.98,155.36,155.27,3.2203]
[1729014453184,5.98,155.36,155.29,3.2197]
[1729014453682,3.2194,155.32,155.29,3.2197]
[1729014455076,5.98,155.36,155.3,3.2196]
[1729014455077,3.2191,155.33,155.3,3.2196]
[1729014456080,3.2189,155.34,155.31,3.2194]
[1729014456279,5.98,155.36,155.27,5.98]
[1729014456885,3.2189,155.34,155.31,3.2193]
[1729014457784,3.2187,155.35,155.27,5.98]
[1729014458279,26.0726,155.42,155.29,24.72]
[1729014458486,7.00783545,155.4,155.3,1.4348]
[1729014458783,5.98,155.4,155.3,1.4348]
[1729014458982,3.2186,155.36,155.3,1.4348]
[1729014459684,5.98,155.4,155.3,1.4348]
[1729014459881,1.3618,155.41,155.31,30.7]
[1729014460182,5.98,155.42,155.34,24.72]
[1729014460483,3.2177,155.4,155.34,24.72]
[1729014460787,2.687,155.44,155.34,24.72]
[1729014461082,2.687,155.44,155.32,4.50552734]
[1729014461083,3.2173,155.42,155.36,24.72]
[1729014461285,3.2173,155.42,155.37,1.3597]
[1729014461485,1.02811384,155.43,155.37,1.3597]
[1729014461678,3.2176,155.41,155.37,1.3597]
[1729014461884,1.02811384,155.43,155.37,1.3597]
[1729014462191,1.02811384,155.43,155.35,5.98]
[1729014463386,25.74811384,155.43,155.33,7.3131]
[1729014463689,3.2186,155.36,155.33,4.5521]
[1729014465891,5.98,155.4,155.33,4.5521]
[1729014466686,5.98,155.4,155.35,3.2186]
[1729014466881,5.98,155.4,155.33,1.3331]
[1729014467287,5.98,155.4,155.34,3.2188]
[1729014467685,5.98,155.4,155.33,1.3331]
[1729014467887,24.72,155.38,155.3,3.2197]
[1729014468089,6.00342668,155.37,155.3,3.2197]
[1729014468289,6.00342668,155.37,155.28,5.98]
[1729014468290,3.219,155.34,155.28,5.98]
[1729014468796,3.219,155.34,155.31,3.2194]
[1729014468995,3.219,155.34,155.28,5.98]
[1729014469186,1.3567,155.37,155.33,3.219]
[1729014469388,30.7,155.4,155.28,5.98]
[1729014469598,3.2181,155.38,155.31,24.72]
[1729014469801,8.7322,155.42,155.36,3.2184]
[1729014470193,3.2178,155.4,155.33,24.72]
[1729014470398,3.2178,155.4,155.37,3.2181]
[1729014471898,5.98,155.42,155.32,13.16308465]
[1729014471899,3.2183,155.37,155.34,3.2188]
[1729014472292,5.98,155.42,155.32,9.9825]
[1729014472492,5.98,155.42,155.34,3.2188]
[1729014472693,1.02839995,155.41,155.34,3.2188]
[1729014473000,5.98,155.42,155.34,3.2188]
[1729014473811,5.98,155.42,155.32,8.6543]
[1729014474012,3.2182,155.38,155.35,3.2186]
[1729014475608,30.62658675,155.46,155.33,24.72]
[1729014475906,3.2176,155.4,155.33,26.0908]
[1729014476411,3.2176,155.4,155.37,3.2181]
[1729014476611,3.2179,155.39,155.37,3.2181]
[1729014477407,3.2179,155.39,155.36,3.2183]
[1729014480911,5.98,155.43,155.33,1.3708]
[1729014481112,3.2177,155.4,155.37,3.2181]
[1729014481417,5.96,155.43,155.33,26.0908]
[1729014481608,30.68,155.43,155.32,2.6743]
[1729014481804,24.72,155.41,155.32,1.2967]
[1729014482016,3.2186,155.36,155.33,3.2189]
[1729014482719,3.2186,155.36,155.34,3.2188]
[1729014482918,1.3065,155.4,155.34,3.2188]
[1729014483211,6.4335,155.45,155.37,3.2182]
[1729014483414,6.98935112,155.44,155.34,5.96]
[1729014483616,5.96,155.44,155.34,5.96]
[1729014484009,5.96,155.44,155.37,3.218]
[1729014484217,3.2175,155.41,155.34,5.96]
[1729014484519,3.2175,155.41,155.38,3.2179]
[1729014486715,3.2176,155.4,155.38,3.2179]
[1729014486919,5.96,155.44,155.37,3.2182]
[1729014487116,5.96,155.44,155.34,5.96]
[1729014487323,3.2174,155.41,155.34,5.96]
[1729014487519,3.2174,155.41,155.38,3.218]
[1729014488323,5.96,155.44,155.34,5.96]
[1729014488818,1.3809,155.45,155.36,24.72]
[1729014489121,1.3269,155.46,155.38,24.72]
[1729014489311,1.3269,155.46,155.38,30.68]
[1729014489517,3.217,155.44,155.41,3.2172]
[1729014489918,1.3269,155.46,155.4,15.44]
[1729014490111,3.217,155.43,155.4,18.6575]
[1729014490514,106.37131767,155.48,155.42,15.44]
[1729014490724,3.2162,155.47,155.44,3.2167]
[1729014491219,1.3202,155.53,155.44,15.44]
[1729014491418,1.02933678,155.52,155.45,1.3055]
[1729014492018,3.2153,155.51,155.48,3.2158]
[1729014492414,3.2153,155.51,155.46,30.65]
[1729014492622,3.2153,155.51,155.47,3.216]
[1729014493319,3.2153,155.51,155.46,30.65]
[1729014493517,3.2152,155.52,155.48,3.2158]
[1729014494116,3.2145,155.55,155.52,3.2151]
[1729014494318,7.2947,155.57,155.48,24.69]
[1729014495027,3.2148,155.54,155.51,3.2152]
[1729014495232,7.2947,155.57,155.51,3.2152]
[1729014495233,5.96,155.57,155.51,3.2152]
[1729014495526,1.3006,155.6,155.51,24.69]
[1729014495714,1.3006,155.6,155.52,1.3094]
[1729014496324,3.2146,155.55,155.52,1.3094]
[1729014497525,3.2146,155.55,155.52,4.5245]
[1729014499133,1.3006,155.6,155.52,1.3094]
[1729014499821,7.2606,155.6,155.52,1.3094]
[1729014500630,3.2147,155.55,155.52,1.3094]
[1729014500822,7.2606,155.6,155.47,2.71]
[1729014500823,24.69,155.57,155.47,2.71]